bitfinex-derivatives/quotes_ETHF0:USTF0_20251028
["timestamp","ask_amount","ask_price","bid_price","bid_amount"]
[1761639215798,0.4403,4112.5,4112.4,1.21397537]
[1761639216094,0.87802,4112.5,4112.4,1.21397537]
[1761639216496,1.12842,4112.5,4112.4,0.77624537]
[1761639216698,0.2504,4113.0,4112.4,0.44114537]
[1761639216898,0.8783,4112.7,4112.6,0.7742]
[1761639217200,1.1287,4112.7,4112.6,0.3351]
[1761639218294,0.8783,4112.7,4112.6,0.7742]
[1761639218697,1.1287,4112.7,4112.6,0.7742]
[1761639218899,1.1287,4112.7,4112.6,0.3351]
[1761639221294,1.1287,4112.7,4112.6,0.5586]
[1761639222002,1.1287,4112.7,4112.6,0.99631]
[1761639222602,1.1287,4112.7,4112.6,0.5586]
[1761639223302,1.12871,4112.6,4112.5,1.12922]
[1761639223896,0.4406,4112.6,4112.5,1.34482]
[1761639224502,0.87831,4112.6,4112.5,0.9071]
[1761639233215,0.87831,4112.6,4112.5,0.87223687]
[1761639233402,0.9652,4112.9,4112.6,0.4377]
[1761639233606,1.1792,4112.9,4112.8,0.4391]
[1761639234017,1.16352,4112.5,4112.4,0.00204537]
[1761639234807,1.16352,4112.5,4112.4,0.22554537]
[1761639235309,1.16352,4112.5,4112.4,0.56064537]
[1761639237316,1.73069852,4112.5,4112.4,0.56064537]
[1761639239110,1.93110433,4112.5,4112.4,0.33714537]
[1761639239312,1.73069852,4112.5,4112.4,0.00204537]
[1761639240613,1.73069852,4112.5,4112.4,0.33714537]
[1761639240816,42.53069852,4112.5,4112.4,0.33714537]
[1761639243718,42.53069852,4112.5,4112.4,0.00204537]
[1761639244019,42.53069852,4112.5,4112.4,0.33714537]
[1761639247418,42.53069852,4112.5,4112.4,0.00204537]
[1761639247725,0.48148947,4112.5,4112.4,1.20447537]
[1761639247920,0.9717,4112.7,4112.6,1.20242]
[1761639253125,1.1947,4112.7,4112.6,0.7647]
[1761639253427,2.1353,4112.7,4112.6,0.3204]
[1761639253622,2.1353,4112.7,4112.6,0.5417]
[1761639254022,1.6976,4112.7,4112.6,0.5417]
[1761639254223,1.4125,4112.7,4112.6,1.20241]
[1761639254725,2.1353,4112.7,4112.6,0.7647]
[1761639255724,1.4125,4112.7,4112.6,0.7647]
[1761639256632,1.8502,4112.7,4112.6,0.7647]
[1761639257233,2.1353,4112.7,4112.6,0.7647]
[1761639260936,1.6976,4112.7,4112.6,1.20241]
[1761639261137,1.4125,4112.7,4112.6,1.20241]
[1761639261737,1.8502,4112.7,4112.6,1.20241]
[1761639262038,1.8502,4112.7,4112.6,0.7647]
[1761639262638,2.1353,4112.7,4112.6,0.7647]
[1761639262939,1.8502,4112.7,4112.6,0.7647]
[1761639263539,1.8502,4112.7,4112.6,1.20241]
[1761639264042,2.1353,4112.7,4112.6,0.7647]
[1761639264739,1.8502,4112.7,4112.6,0.7647]
[1761639264941,1.8502,4112.7,4112.6,1.20241]
[1761639265143,1.8502,4112.7,4112.6,0.7647]
[1761639265335,2.1353,4112.7,4112.6,0.7647]
[1761639265942,1.8502,4112.7,4112.6,0.7647]
[1761639266441,2.1353,4112.7,4112.6,0.3204]
[1761639268640,2.1353,4112.7,4112.6,0.5417]
[1761639270043,2.1353,4112.7,4112.6,0.97941]
[1761639270547,2.1353,4112.7,4112.6,0.5417]
[1761639271045,2.1353,4112.7,4112.6,0.97941]
[1761639271244,1.1636,4112.7,4112.6,0.97941]
[1761639272247,1.16362,4112.5,4112.4,0.32244537]
[1761639274948,1.73005036,4112.5,4112.4,0.32244537]
[1761639275450,42.53005036,4112.5,4112.4,0.32244537]
[1761639276450,42.24495036,4112.5,4112.4,1.20527537]
[1761639276649,41.67852,4112.5,4112.4,1.20527537]
[1761639278050,41.2408,4112.5,4112.4,1.20527537]
[1761639278247,40.8,4112.5,4112.4,1.20527537]
[1761639278445,0.8978,4112.6,4112.5,1.36632]
[1761639278645,1.33551,4112.6,4112.5,1.36632]
[1761639279947,2.04921,4112.6,4112.5,0.7048]
[1761639280147,2.6158825,4112.6,4112.5,0.3427]
[1761639280850,2.6158825,4112.6,4112.5,1.00672]
[1761639281251,2.61588952,4112.6,4112.5,0.569]
[1761639282055,2.61588952,4112.6,4112.5,1.00672]
[1761639283748,2.61588952,4112.6,4112.5,0.7048]
[1761639283946,0.4939,4112.5,4112.4,0.00204537]
[1761639284251,1.28037952,4112.5,4112.4,0.57104537]
[1761639285058,0.28037952,4112.5,4112.4,0.57104537]
[1761639287060,0.28037952,4112.5,4112.4,0.79484537]
[1761639287455,0.28037952,4112.5,4112.4,0.34474537]
[1761639290062,0.28037952,4112.5,4112.4,0.79484537]
[1761639290859,0.28037952,4112.5,4112.4,0.57104537]
[1761639291062,0.28037952,4112.5,4112.4,0.79484537]
[1761639294866,0.71809952,4112.5,4112.4,0.79484537]
[1761639295159,0.28037952,4112.5,4112.4,0.79484537]
[1761639295368,1.33552,4112.6,4112.5,1.36632]
[1761639295964,0.8978,4112.6,4112.5,1.36632]
[1761639296360,1.33551,4112.6,4112.5,0.9286]
[1761639297667,1.33551,4112.6,4112.5,1.36632]
[1761639298668,1.33551,4112.6,4112.5,0.9286]
[1761639299761,1.33551,4112.6,4112.5,1.36632]
[1761639300061,1.33551,4112.6,4112.5,0.9286]
[1761639301667,0.8978,4112.6,4112.5,1.36632]
[1761639307770,0.43762,4113.5,4113.4,0.4512]
[1761639307967,0.43762,4113.5,4113.4,0.7973]
[1761639313376,41.23761,4113.6,4113.5,0.9232]
[1761639313972,41.23761,4113.6,4113.5,1.36082]
[1761639314271,41.23761,4113.6,4113.5,0.9232]
[1761639314977,41.23761,4113.6,4113.5,1.36082]
[1761639316578,0.43761,4113.6,4113.5,1.36082]
[1761639317269,0.43999428,4113.7,4113.6,0.7973]
[1761639317468,0.43999428,4113.7,4113.6,0.5768]
[1761639318485,0.43999428,4113.7,4113.6,0.7973]
[1761639323585,0.43999428,4113.7,4113.6,0.5768]
[1761639324284,1.00292993,4113.7,4113.6,0.3461]
[1761639324993,1.00292993,4113.7,4113.3,0.3461]
[1761639324994,0.43763,4113.4,4113.3,0.3461]
[1761639325487,1.0006982,4113.4,4113.3,0.3461]
[1761639326286,1.0006982,4113.4,4113.3,0.5768]
[1761639326688,1.0006982,4113.4,4113.3,1.23494]
[1761639327488,1.0006982,4113.4,4113.3,0.7973]
[1761639327683,1.0006982,4113.4,4113.3,1.23494]
[1761639328288,0.43763,4113.4,4113.3,0.7973]
[1761639328485,0.99683818,4113.4,4113.3,0.7973]
[1761639328886,0.4376,4113.6,4113.5,0.472]
[1761639329083,0.4376,4113.6,4113.5,0.9232]
[1761639329392,41.2376,4113.6,4113.5,0.9232]
[1761639329590,41.79686389,4113.6,4113.5,0.9232]
[1761639332692,41.79686389,4113.6,4113.5,0.7027]
[1761639339104,41.79686389,4113.6,4113.5,0.9191]
[1761639340204,41.35926389,4113.6,4113.5,1.35672]
[1761639340811,41.79686389,4113.6,4113.5,1.35672]
[1761639341006,41.79686389,4113.6,4113.5,0.9191]
[1761639341496,41.35926389,4113.6,4113.5,1.35672]
[1761639341700,0.00240428,4113.7,4113.6,1.1998]
[1761639341900,0.00240428,4113.7,4113.6,1.19981]
[1761639343210,0.00240428,4113.7,4113.6,0.7622]
[1761639343211,0.43999428,4113.7,4113.6,0.7622]
[1761639343803,0.43999428,4113.7,4113.6,1.1998]
[1761639344404,0.00240428,4113.7,4113.6,1.1998]
[1761639345811,0.43999428,4113.7,4113.6,0.7622]
[1761639346206,0.43999428,4113.7,4113.6,1.1998]
[1761639346608,0.00240428,4113.7,4113.6,1.1998]
[1761639351410,0.43999428,4113.7,4113.6,0.7622]
[1761639351610,0.43999428,4113.7,4113.6,1.19981]
[1761639353718,0.43999428,4113.7,4113.6,0.7622]
[1761639354209,0.43999428,4113.7,4113.6,1.19981]
[1761639354414,0.43999428,4113.7,4113.6,0.5458]
[1761639354614,0.43999428,4113.7,4113.6,0.7622]
[1761639360710,0.43999428,4113.7,4113.6,1.19981]
[1761639360910,0.00240428,4113.7,4113.6,1.19981]
[1761639364315,0.00240428,4113.7,4113.6,5.09781]
[1761639373722,0.43999428,4113.7,4113.6,4.6602]
[1761639374118,0.43999428,4113.7,4113.6,0.7622]
[1761639374316,0.99882931,4113.7,4113.6,0.7622]
[1761639374720,0.99882931,4113.7,4113.6,0.5458]
[1761639374921,0.99882931,4113.7,4113.6,0.334]
[1761639376118,8.99882931,4113.7,4113.6,0.334]
[1761639376718,49.79882931,4113.7,4113.6,0.334]
[1761639385333,0.99883931,4113.7,4113.6,1.21361]
[1761639385525,0.00240428,4113.7,4113.6,1.21361]
[1761639387135,0.9513,4114.1,4114.0,1.34506]
[1761639387933,0.00196145,4114.1,4114.0,1.34506]
[1761639390825,0.43951145,4114.1,4114.0,0.9075]
[1761639394628,0.00196145,4114.1,4114.0,1.34506]
[1761639395030,0.43951145,4114.1,4114.0,1.34506]
[1761639396135,0.00196145,4114.1,4114.0,1.34506]
[1761639400735,0.00196145,4114.1,4114.0,5.24306]
[1761639400937,1.1027,4114.4,4114.3,1.21973]
[1761639401236,41.23747,4115.0,4114.9,0.7822]
[1761639401437,0.99632944,4115.0,4114.9,0.7822]
[1761639401831,0.4397274,4115.0,4114.9,1.21967]
[1761639403637,0.0022574,4115.0,4114.9,1.21967]
[1761639406140,0.6659,4115.3,4115.2,1.21964]
[1761639406442,1.09316,4116.9,4115.0,0.136]
[1761639406443,0.43733,4116.2,4116.1,0.3425]
[1761639406645,41.23733,4116.2,4116.1,0.3425]
[1761639407040,41.23932287,4116.2,4116.1,0.34481439]
[1761639407245,41.23932287,4116.2,4116.1,0.56821439]
[1761639411049,41.23932287,4116.2,4116.1,0.78451439]
[1761639411253,41.23932287,4116.2,4116.1,1.22185439]
[1761639411756,41.23932287,4116.2,4116.1,0.78451439]
[1761639413054,0.00199287,4116.2,4116.1,1.22185439]
[1761639413255,0.43932287,4116.2,4116.1,1.22185439]
[1761639414157,0.00199287,4116.2,4116.1,1.22185439]
[1761639415052,0.98809773,4116.6,4116.5,0.4373]
[1761639415252,0.43727,4116.9,4116.8,0.7822]
[1761639415556,41.23727,4116.9,4116.8,1.21947]
[1761639415855,0.43724,4117.1,4117.0,0.9182]
[1761639416053,0.4402406,4117.1,4117.0,0.9182]
[1761639416661,0.4402406,4117.1,4117.0,1.35545]
[1761639420048,0.4402406,4117.1,4117.0,0.9182]
[1761639420255,0.4402406,4117.1,4117.0,0.4785]
[1761639420455,0.43729,4116.6,4116.5,0.3594]
[1761639420652,0.43729,4116.6,4116.5,0.136]
[1761639420858,0.43729,4116.6,4116.5,0.4785]
[1761639421450,0.43729,4116.6,4116.5,0.7019]
[1761639422455,0.43729,4116.6,4116.5,0.4785]
[1761639424956,1.09327,4116.5,4116.2,0.3193]
[1761639425153,40.8,4116.4,4116.2,0.3193]
[1761639425652,0.43732,4116.3,4116.2,0.3193]
[1761639426362,41.23732,4116.3,4116.2,0.3193]
[1761639426962,0.43733,4116.2,4116.1,0.32161439]
[1761639428456,1.09327,4116.5,4116.1,0.32161439]
[1761639428654,1.09327,4116.5,4116.1,0.00231439]
[1761639428655,0.43733,4116.2,4116.1,0.00231439]
[1761639428851,0.99126378,4116.2,4116.1,0.00231439]
[1761639429352,41.79126378,4116.2,4116.1,0.00231439]
[1761639429553,41.35393378,4116.2,4115.4,0.3443]
[1761639429757,0.2203,4114.6,4114.5,0.5583]
[1761639429955,0.6578,4114.6,4114.5,0.5583]
[1761639430657,0.6578,4114.6,4114.5,0.99870605]
[1761639431057,40.8,4114.9,4114.8,0.2164]
[1761639431257,41.23747,4114.9,4114.8,0.2164]
[1761639431457,41.23747,4114.9,4114.8,0.4322]
[1761639431653,41.23747,4114.9,4114.8,0.7765]
[1761639432267,41.23747,4114.9,4114.8,1.21398]
[1761639433162,41.23747,4114.9,4114.8,0.7765]
[1761639434063,41.23747,4114.9,4114.8,1.21398]
[1761639435267,41.23747,4114.9,4114.8,0.7765]
[1761639435765,41.23747,4114.9,4114.8,1.21398]
[1761639439663,41.23747,4114.9,4114.8,0.7765]
[1761639440358,0.43745,4115.1,4115.0,0.57446]
[1761639440665,1.1564,4115.6,4115.5,0.6977]
[1761639440866,41.9564,4115.6,4115.5,0.6977]
[1761639442469,41.9564,4115.6,4115.5,0.9135]
[1761639442666,41.6876,4115.6,4115.5,0.9135]
[1761639443668,41.9564,4115.6,4115.5,0.6977]
[1761639443868,1.15645,4115.1,4115.0,0.3534]
[1761639444063,0.88765,4115.1,4115.0,0.5692]
[1761639444265,0.88765,4115.1,4115.0,1.00666]
[1761639444568,1.15645,4115.1,4115.0,0.91876]
[1761639444767,1.15645,4115.1,4115.0,1.13516]
[1761639445067,1.15645,4115.1,4115.0,1.35096]
[1761639445265,0.88765,4115.1,4115.0,1.35096]
[1761639446570,0.88765,4115.1,4115.0,0.9135]
[1761639446771,1.15645,4115.1,4115.0,0.9135]
[1761639447169,1.15645,4115.1,4114.9,0.43746]
[1761639447170,0.4375,4114.6,4114.5,0.56119605]
[1761639447473,1.1565,4114.6,4114.5,0.34539605]
[1761639447671,1.1565,4114.6,4114.5,0.00289605]
[1761639447975,1.1565,4114.6,4114.5,0.56359605]
[1761639448168,1.1565,4114.6,4114.5,0.34719605]
[1761639454272,1.1565,4114.6,4114.5,0.56359605]
[1761639454474,0.8877,4114.6,4114.5,0.90899605]
[1761639454975,1.1561,4114.6,4114.5,0.90899605]
[1761639455868,0.8877,4114.6,4114.5,0.90899605]
[1761639456673,1.1561,4114.6,4114.5,0.90899605]
[1761639458271,1.7115642,4114.6,4114.5,0.90899605]
[1761639460482,1.71165635,4114.6,4114.5,0.90899605]
[1761639460981,0.80535635,4114.9,4114.5,0.56469605]
[1761639461174,0.43749,4114.7,4114.6,0.5594]
[1761639462378,0.43749,4114.7,4114.6,0.7767]
[1761639468992,0.43749,4114.7,4114.6,1.2142]
[1761639469394,0.43749,4114.8,4114.7,1.21418]
[1761639471898,0.43749,4114.8,4114.7,0.7767]
[1761639472697,0.43749,4114.8,4114.7,1.21419]
[1761639473596,0.6805,4114.9,4114.8,0.43748]
[1761639473597,1.11797,4114.9,4114.8,0.43748]
[1761639473801,1.11797,4114.9,4114.8,1.21418]
[1761639474494,1.11797,4114.9,4114.8,0.7767]
[1761639475600,1.11797,4114.9,4114.8,1.21418]
[1761639482992,0.6805,4114.9,4114.8,1.21418]
[1761639484099,0.65703574,4114.9,4114.8,1.21418]
[1761639484303,0.43737,4115.9,4115.8,1.22377]
[1761639484692,0.99531938,4115.9,4115.8,1.22377]
[1761639485896,0.0030006,4117.1,4116.5,0.1345]
[1761639485897,1.96457876,4116.7,4116.5,0.1345]
[1761639486202,0.43728,4116.7,4116.6,0.5648]
[1761639486402,0.99510818,4116.7,4116.6,0.5648]
[1761639487202,0.99510818,4116.7,4116.6,0.3445]
[1761639487203,1.18999819,4116.7,4116.6,0.3445]
[1761639487995,0.99510818,4116.7,4116.6,0.5658]
[1761639488204,0.99510818,4116.7,4116.6,0.794]
[1761639490012,0.43728,4116.7,4116.6,1.23129]
[1761639490209,0.7056006,4117.1,4117.0,0.5801]
[1761639490408,0.99709125,4117.1,4117.0,0.912]
[1761639492303,0.4402406,4117.1,4117.0,0.912]
[1761639497819,0.0030006,4117.1,4117.0,1.34925]
[1761639498114,0.4402406,4117.1,4117.0,1.34925]
[1761639498615,0.0030006,4117.1,4117.0,1.34925]
[1761639499021,0.4402406,4117.1,4117.0,1.34925]
[1761639500718,0.4402406,4117.1,4117.0,0.912]
[1761639500906,0.4402406,4117.1,4117.0,1.34925]
[1761639501712,0.4402406,4117.1,4117.0,0.912]
[1761639502014,0.4402406,4117.1,4117.0,1.34925]
[1761639505317,0.0030006,4117.1,4117.0,1.34925]
[1761639505627,1.0371,4117.4,4117.3,1.21862]
[1761639505823,0.4372,4117.5,4117.4,1.21861]
[1761639506617,0.43954911,4117.5,4117.4,1.22114498]
[1761639510521,0.43954911,4117.5,4117.4,0.78393498]
[1761639511021,0.43954911,4117.5,4117.4,1.22114498]
[1761639511224,0.00234911,4117.5,4117.4,1.22114498]
[1761639512121,0.43954911,4117.5,4117.4,1.22114498]
[1761639514323,0.43954911,4117.5,4117.4,0.78393498]
[1761639516724,0.99285826,4117.5,4117.4,0.78393498]
[1761639538153,0.99285826,4117.5,4117.4,1.22114498]
[1761639538350,0.99505843,4117.5,4117.4,0.78393498]
[1761639541049,0.99505843,4117.5,4117.4,0.55573498]
[1761639541253,0.99505843,4117.5,4117.4,0.33443498]
[1761639541454,0.43724,4117.1,4117.0,0.03316567]
[1761639541664,0.43729,4116.6,4116.5,0.5777]
[1761639541955,42.11071841,4116.6,4116.5,0.474]
[1761639542152,0.43736,4116.0,4115.9,0.3395]
[1761639542546,0.99286932,4116.0,4115.9,0.34163993]
[1761639544448,0.87319368,4116.8,4115.9,0.45183993]
[1761639544760,41.2373,4116.6,4116.5,0.9072]
[1761639544954,41.79116699,4116.6,4116.5,0.9072]
[1761639546357,41.2373,4116.6,4116.5,0.9072]
[1761639547662,0.43728,4116.8,4116.6,0.43729]
[1761639547860,0.43728,4116.8,4116.7,0.7683]
[1761639548661,41.23722,4117.3,4117.2,0.7683]
[1761639548956,41.79095601,4117.3,4117.2,0.7683]
[1761639549163,41.23722,4117.3,4117.2,0.7683]
[1761639549558,40.8,4117.3,4117.2,1.20553]
[1761639549758,40.8,4117.3,4117.2,0.7683]
[1761639550064,40.8,4117.3,4117.2,1.20553]
[1761639551866,1.32531,4117.4,4117.3,0.7683]
[1761639552067,0.8881,4117.4,4117.3,0.7683]
[1761639552568,1.32531,4117.4,4117.3,1.20552]
[1761639557769,0.8881,4117.4,4117.3,1.20552]
[1761639563968,1.32531,4117.4,4117.3,1.20552]
[1761639565173,0.8881,4117.4,4117.3,1.20552]
[1761639577482,0.022,4117.8,4117.4,0.43721]
[1761639577787,0.43708,4118.6,4118.5,0.9063]
[1761639577987,0.99181121,4118.6,4118.5,1.34339]
[1761639578478,0.99401877,4118.6,4118.5,0.9063]
[1761639578790,0.99401877,4118.6,4118.5,1.34339]
[1761639579887,0.99401877,4118.6,4118.5,0.9063]
[1761639580291,0.99401877,4118.6,4118.5,1.34339]
[1761639581889,0.99401877,4118.6,4118.5,0.9063]
[1761639582390,0.99401877,4118.6,4118.5,1.34339]
[1761639584193,0.99401877,4118.6,4118.5,0.9063]
[1761639584492,0.99401877,4118.6,4118.5,0.6881]
[1761639585597,0.99401877,4118.6,4118.5,1.34339]
[1761639585896,0.99401877,4118.6,4118.5,0.9063]
[1761639590302,0.99401877,4118.6,4118.5,1.34339]
[1761639595409,0.00220756,4118.6,4118.5,1.34339]
[1761639597911,0.00220756,4118.6,4118.5,2.65159118]
[1761639599409,0.09046568,4119.0,4118.9,1.20895]
[1761639599609,0.43697,4119.7,4119.6,0.43697]
[1761639599812,0.54999081,4119.8,4119.7,0.43697]
[1761639600006,2.40352834,4120.6,4120.1,0.3308]
[1761639600007,1.09226,4120.3,4120.1,0.3308]
[1761639600208,0.98690051,4120.2,4120.1,0.3308]
[1761639600402,41.78997484,4120.2,4120.1,0.33299748]
[1761639601011,41.78997484,4120.2,4120.1,0.77409748]
[1761639601212,0.00307433,4120.2,4120.1,1.21101748]
[1761639612422,0.43683,4121.1,4120.2,1.09229]
[1761639612622,0.63390289,4122.2,4122.1,0.3375]
[1761639612820,0.43671,4122.1,4122.0,0.1274]
[1761639613119,0.43677,4121.6,4121.5,0.1274]
[1761639613318,0.43677,4121.6,4121.5,0.3535]
[1761639613524,0.43677,4121.6,4121.5,0.691]
[1761639613525,0.4398841,4121.6,4121.5,0.691]
[1761639614018,0.4398841,4121.6,4121.5,0.9201]
[1761639616615,0.4398841,4121.6,4121.5,0.691]
[1761639619923,0.4398841,4121.6,4121.5,0.4649]
[1761639622222,0.43682,4121.1,4121.0,0.3535]
[1761639622724,0.43682,4121.1,4121.0,0.9201]
[1761639623715,0.43687,4120.6,4120.5,0.1274]
[1761639624427,0.43687,4120.6,4120.5,0.691]
[1761639625724,0.43687,4120.6,4120.1,0.00219748]
[1761639625725,0.4369,4120.3,4120.2,0.3375]
[1761639626622,0.98177356,4120.3,4120.2,0.3375]
[1761639626823,0.98177356,4120.3,4120.1,0.00219748]
[1761639627029,0.4369,4120.3,4120.1,0.33969748]
[1761639627222,40.8,4120.2,4120.1,0.33969748]
[1761639627423,41.54329283,4120.2,4120.1,0.33969748]
[1761639627624,41.34508113,4120.2,4120.1,0.33969748]
[1761639627922,41.34508113,4120.2,4120.1,0.56579748]
[1761639628832,41.54150153,4120.2,4120.1,0.56579748]
[1761639629018,41.97842153,4120.2,4120.1,0.33969748]
[1761639629818,41.97842153,4120.2,4120.1,0.00219748]
[1761639630023,0.43701,4119.3,4119.2,0.3375]
[1761639630529,0.9821943,4119.3,4119.2,0.3375]
[1761639631125,0.9821943,4119.3,4119.2,0.34010021]
[1761639631431,0.9821943,4119.3,4119.2,0.56620021]
[1761639632130,0.9821943,4119.3,4119.2,0.79530021]
[1761639633229,0.43701,4119.3,4119.2,0.79530021]
[1761639635330,0.43701,4119.3,4119.2,0.34010021]
[1761639635534,0.43701,4119.3,4119.2,0.00260021]
[1761639635735,0.43701,4119.3,4119.2,0.31640021]
[1761639636244,0.43701,4119.3,4119.2,0.77460021]
[1761639638335,0.43701,4119.4,4119.3,0.3138]
[1761639638536,0.43701,4119.4,4119.3,0.772]
[1761639639540,0.43701,4119.4,4119.3,1.20901]
[1761639640739,41.43219629,4120.2,4120.1,0.5423]
[1761639640939,41.23692,4120.2,4120.1,0.3138]
[1761639641640,0.43693,4120.1,4120.0,0.1252]
[1761639641842,0.43695,4119.9,4119.8,0.3138]
[1761639642436,0.43695,4119.9,4119.8,0.5423]
[1761639642750,0.43695,4119.9,4119.8,0.772]
[1761639647249,0.43695,4119.9,4119.8,0.3138]
[1761639647546,0.43695,4119.9,4119.8,0.772]
[1761639649144,0.43401835,4119.9,4119.8,1.20896]
[1761639650346,1.0921,4121.0,4120.7,0.3138]
[1761639650644,1.09199,4121.4,4121.1,0.3138]
[1761639650846,0.98143129,4121.3,4121.2,0.5423]
[1761639651242,1.1743924,4121.3,4121.2,0.5423]
[1761639651551,41.9743924,4121.3,4121.2,0.772]
[1761639652251,41.78143129,4121.3,4121.2,0.772]
[1761639654652,41.78143129,4121.3,4121.2,0.772]
[1761639655945,41.2368,4121.3,4121.2,0.772]
[1761639656951,0.4368,4121.3,4121.2,0.772]
[1761639657254,41.2368,4121.3,4121.2,0.772]
[1761639658456,0.4368,4121.3,4121.2,0.772]
[1761639660154,0.43679,4121.4,4121.2,0.4582]
[1761639660355,0.43679,4121.4,4121.3,1.2088]
[1761639660649,0.43679,4121.4,4121.3,0.772]
[1761639660860,0.4398941,4121.6,4121.5,0.8972]
[1761639661259,0.4398941,4121.6,4121.5,1.33398]
[1761639661458,0.0031141,4121.6,4121.5,1.33398]
[1761639661850,0.0031141,4121.6,4121.5,0.8972]
[1761639661851,0.4398841,4121.6,4121.5,0.8972]
[1761639662850,0.0031141,4121.6,4121.5,1.33398]
[1761639663954,0.02053404,4122.8,4122.5,0.1252]
[1761639664147,0.45717404,4122.8,4122.7,0.4582]
[1761639664557,0.45717404,4122.8,4122.7,0.8042]
[1761639665057,0.4589198,4122.8,4122.7,0.00284973]
[1761639665451,0.4589198,4122.8,4122.7,0.34884973]
[1761639665655,41.2589198,4122.8,4122.7,0.34884973]
[1761639666359,41.2589198,4122.8,4122.7,0.79454973]
[1761639666961,41.2589198,4122.8,4122.7,0.00284973]
[1761639667664,41.2589198,4122.8,4122.7,0.33184973]
[1761639668063,41.80124653,4122.8,4122.7,0.33184973]
[1761639668856,41.80124653,4122.8,4122.7,9.73e-06]
[1761639670678,41.80124653,4122.8,4122.7,0.32900973]
[1761639671576,41.80124653,4122.8,4122.7,0.53890973]
[1761639672279,41.80124653,4122.8,4122.7,0.32900973]
[1761639673678,41.80124653,4122.8,4122.7,9.73e-06]
[1761639673879,0.2954,4122.0,4121.5,0.5508]
[1761639674181,0.43677,4121.6,4121.5,0.5508]
[1761639674775,0.58447,4121.6,4121.5,0.55326675]
[1761639675383,0.73217,4121.6,4121.5,0.55326675]
[1761639675976,0.73217,4121.6,4121.5,0.88226675]
[1761639676683,0.87987,4121.6,4121.5,0.88226675]
[1761639677983,0.73217,4121.6,4121.5,0.88226675]
[1761639680186,1.27675692,4121.6,4121.5,0.88226675]
[1761639680987,42.07675692,4121.6,4121.5,0.88226675]
[1761639684889,1.12905692,4121.6,4121.5,0.88226675]
[1761639686588,1.27675692,4121.6,4121.5,0.88226675]
[1761639690689,0.98135692,4121.6,4121.5,0.88226675]
[1761639693701,1.12905692,4121.6,4121.5,0.88226675]
[1761639694294,0.98135692,4121.6,4121.5,0.88226675]
[1761639695697,0.54458692,4121.6,4121.5,0.88226675]
[1761639696197,0.54458692,4121.6,4121.5,1.31904675]
[1761639701801,0.1481,4122.6,4122.5,1.34177]
[1761639701802,0.2962,4122.6,4122.5,1.34177]
[1761639702006,0.1703798,4122.8,4122.7,1.20325]
[1761639702201,0.71609643,4122.8,4122.7,1.20325]
[1761639705616,0.56799643,4122.8,4122.7,1.20325]
[1761639707507,0.88082,4123.9,4123.8,0.76173]
[1761639707708,0.9887128,4123.9,4123.8,0.76173]
[1761639707912,41.98740701,4123.9,4123.8,0.76173]
[1761639708105,41.6406128,4123.9,4123.8,0.97333]
[1761639708310,41.6406128,4123.9,4123.8,1.20313]
[1761639708509,41.49549379,4123.9,4123.8,1.20313]
[1761639709415,40.95108099,4123.9,4123.8,1.20313]
[1761639709616,41.49469542,4123.9,4123.8,1.20313]
[1761639709809,41.64279542,4123.9,4123.8,1.20313]
[1761639710010,41.64279542,4123.9,4123.8,0.43653]
[1761639710210,0.4443,4123.6,4123.5,0.4637]
[1761639710409,0.98791443,4123.6,4123.5,0.4637]
[1761639710705,0.98791443,4123.6,4123.5,0.90026]
[1761639710908,0.98791443,4123.6,4123.4,0.43657]
[1761639710909,0.4443,4123.5,4123.4,0.43657]
[1761639711114,0.98791443,4123.5,4123.4,0.76177]
[1761639711316,0.83981443,4123.5,4123.4,1.20317]
[1761639711616,0.54361443,4123.5,4123.4,1.20317]
[1761639711812,40.80298099,4123.9,4123.8,0.97333]
[1761639712116,41.34635856,4123.9,4123.8,0.97333]
[1761639712313,41.49445856,4123.9,4123.8,0.76173]
[1761639714314,41.34635856,4123.9,4123.8,1.20313]
[1761639714513,0.69445856,4123.9,4123.8,1.20313]
[1761639714721,0.84255856,4123.9,4123.8,1.20313]
[1761639715119,0.99065856,4123.9,4123.8,0.97333]
[1761639715822,0.00298099,4123.9,4123.8,1.20313]
[1761639720830,9.9e-07,4123.9,4123.8,1.20313]
[1761639721029,0.1481,4125.2,4125.1,0.7666]
[1761639721030,0.2962,4125.2,4125.1,0.7666]
[1761639721229,0.2962,4125.2,4125.1,1.203]
[1761639721428,41.0962,4125.2,4125.1,1.203]
[1761639722027,41.09827407,4125.2,4125.1,1.20559214]
[1761639722428,40.95017407,4125.2,4125.1,1.20559214]
[1761639722628,0.15017407,4125.2,4125.1,1.20559214]
[1761639725836,0.00207407,4125.2,4125.1,1.20559214]
[1761639726431,0.73186,4126.4,4126.3,0.65477]
[1761639726631,0.4434,4126.3,4126.2,0.43628]
[1761639727034,0.2956,4126.3,4126.2,1.19418]
[1761639727231,0.1478,4126.3,4126.2,1.19418]
[1761639727428,0.15069379,4126.3,4126.2,1.19418]
[1761639727827,0.58696379,4126.3,4126.2,1.19418]
[1761639728028,0.15069379,4126.3,4126.2,1.19418]
[1761639728433,0.58696379,4126.3,4126.2,1.19418]
[1761639728831,0.15089379,4126.3,4126.2,1.19418]
[1761639730135,0.29889379,4126.3,4126.2,0.7579]
[1761639730340,0.29889379,4126.3,4126.2,0.5503]
[1761639730741,0.29889379,4126.3,4126.2,0.779]
[1761639732844,0.296,4126.1,4126.0,0.9042]
[1761639733043,0.444,4126.1,4126.0,0.6755]
[1761639733243,0.444,4126.1,4126.0,0.4535]
[1761639733443,41.244,4126.1,4126.0,0.4535]
[1761639733749,41.7853454,4126.1,4126.0,0.4535]
[1761639734150,41.7853454,4126.1,4125.6,0.3271]
[1761639734151,0.148,4126.0,4125.6,0.3271]
[1761639734346,0.296,4125.6,4125.5,0.6863]
[1761639734544,0.148,4125.6,4125.5,0.915]
[1761639734850,40.948,4126.1,4125.6,0.3271]
[1761639735046,0.83748858,4126.0,4125.9,0.7778]
[1761639737041,0.98548858,4126.0,4125.9,0.3271]